Cogmind - Beta 13 --- EXPLORER MODE // 2024.04.08 @ 01:17:40 Player: GregoriusTechneticies Result: Destroyed by D-53 Grenadier with Mini Grenade Launcher Performance ------------- Evolutions (0) 0 Regions Visited (2) 400 Robots Destroyed (53) 265 Value Destroyed (371) 371 Prototype IDs (0) 0 Alien Tech Used (0) 0 Bonus (0) 0 TOTAL SCORE: 1036 Bonus ------- None Cogmind --------- Core Integrity 0/250 Matter 274/300 Energy 82/100 System Corruption 2% Temperature Cool (0) Movement Rolling (80) Location -10/Mines Parts ------- > --- POWER (1) -------- (None) > --- PROPULSION (2) --- Wheel > --- UTILITY (3) ------ Terrain Scan Processor Seismic Detector ECM Suite > --- WEAPON (2) ------- (None) > --- INVENTORY (5) ---- Structural Scanner Visual Processing Unit Sensor Array Signal Interpreter Improved Terrain Scanner Peak State ------------ > --- POWER ------------ Light Nuclear Core > --- PROPULSION ------- Wheel Wheel > --- UTILITY ---------- Improved Terrain Scanner Terrain Scan Processor Seismic Detector > --- WEAPON ----------- Rocket Launcher Mining Laser > --- INVENTORY -------- Structural Scanner Visual Processing Unit Sensor Array Signal Interpreter ECM Suite [Rating: 14] Favorites ----------- Power Light Nuclear Core Engine Light Ion Engine Power Core Light Nuclear Core Propulsion Wheel Wheel Wheel Utility Targeting Computer Device Seismic Detector Processor Targeting Computer Weapon Assault Rifle Energy Gun Medium Laser Ballistic Gun Assault Rifle Launcher Rocket Launcher Special Weapon Mining Laser Build | -11 -10 -10 ------- Run | Yrd Mat Min Slots Evolved 1 | . 1 . Power . | . . . Propulsion . | . . . Utility 1 | . 1 . Weapon . | . . . Parts Attached 31 | 11 17 3 Power 3 | 1 2 . Engine 2 | 1 1 . Core 1 | . 1 . Reactor . | . . . Propulsion 13 | 6 7 . Treads . | . . . Leg . | . . . Wheel 13 | 6 7 . Hover . | . . . Flight . | . . . Utility 8 | 2 5 1 Device 4 | . 3 1 Storage . | . . . Processor 4 | 2 2 . Hackware . | . . . Protection . | . . . Artifact . | . . . Weapon 7 | 2 3 2 Energy Gun 2 | 1 1 . Energy Cannon . | . . . Ballistic Gun 2 | 1 . 1 Ballistic Cannon . | . . . Launcher 1 | . . 1 Special Weapon 2 | . 2 . Impact Weapon . | . . . Slashing Weapon . | . . . Piercing Weapon . | . . . Special Melee Weapon . | . . . Unidentified Prototypes . | . . . Parts Lost 5 | . . 5 Power 1 | . . 1 Propulsion 1 | . . 1 Utility . | . . . Weapon 3 | . . 3 Highest Loss Streak 3 | . . 3 To Critical Strikes . | . . . Average Slot Usage (%) 98 | . 100 89 Engine 1 | . 1 . Core 10 | . 10 11 Wheel 24 | . 25 24 Device 21 | . 21 25 Processor 15 | . 15 12 Energy Gun 6 | . 7 . Ballistic Gun 10 | . 12 . Special Weapon 4 | . 4 7 Naked Turns . | . . . Heaviest Build 12 | 7 11 12 Greatest Support 20 | 20 20 20 Greatest Overweight (x) 1 | 1 . . Average Overweight (x) . | . . . Largest Inventory Capacity 5 | 5 5 5 Average Capacity 5 | 5 5 5 Most Carried 5 | 5 5 5 Average Carried 4 | 3 4 5 Final Capacity 5 | 5 5 5 Final Carried 5 | 5 5 5 Class Distribution -------------------- 58% | Scavenger-Mutant 41% | Hacker-Mutant Dominant Class ---------------- Scavenger-Mutant | -10/Materials Scavenger-Mutant | -10/Mines Resources | -11 -10 -10 ----------- Run | Yrd Mat Min Matter Collected 950 | 376 443 131 Remotely . | . . . Salvage Created 1312 | 307 1005 . Parts 101 | 23 78 . Haulers Intercepted 2 | . 2 . Recyclers Shooed 4 | 1 3 . Parts Field Recycled . | . . . Retrieved Matter . | . . . Parts Self-Destructed . | . . . Prevented . | . . . Kills | -11 -10 -10 ------- Run | Yrd Mat Min Combat Hostiles Destroyed 14 | . 6 8 Guns 6 | . 6 . AOE 8 | . . 8 Classes Destroyed 10 | 3 6 1 Worker 14 | 4 10 . Builder 7 | . 7 . Tunneler 16 | 9 7 . Hauler 2 | . 2 . Recycler 5 | 1 4 . Mechanic 1 | . 1 . Watcher 2 | . 2 . Swarmer 4 | . 4 . Grunt 2 | . 2 . Assembled 8 | . . 8 Best Kill Streak 8 | 4 7 8 Combat Bots Only 8 | . 2 8 Max Kills in Single Turn 3 | 2 1 3 Gunslinging . | . . . Exploded 3 | . . 3 Melee . | . . . Uniques/NPCs Destroyed . | . . . Combat | -11 -10 -10 -------- Run | Yrd Mat Min Hostile Shots Fired 80 | . 51 29 Missed 18 | . 11 7 Damage Taken 730 | . 263 467 Core 250 | . 42 208 Absorbed by Shields . | . . . Ignored by Resistances 454 | . 174 280 Core Remaining (%) 100 | 100 . . Volleys Fired 130 | 22 94 14 Largest 2 | 2 2 1 Hottest 120 | 70 120 33 Shots Fired 223 | 44 165 14 Gun 206 | 44 161 1 Cannon . | . . . Launcher 13 | . . 13 Special 4 | . 4 . Kinetic 116 | 22 93 1 Thermal 94 | 22 72 . Explosive 13 | . . 13 Electromagnetic . | . . . Robot Hit Streak 25 | 18 25 8 Robot Miss Streak 2 | 1 2 2 Penetration Max . | . . . Secondary Targets 3 | . 3 . Max Gunslinging Chain 1 | . 1 . Shots Hit Robots 174 | 36 127 11 Core Hits 83 | 15 49 19 Critical Kills . | . . . Critical Parts Destroyed 1 | . 1 . Critical Strikes 8 | 2 6 . Burn 7 | 2 5 . Destroy 1 | . 1 . Melee Attacks . | . . . Impact . | . . . Slashing . | . . . Piercing . | . . . Sneak Attacks . | . . . Combat Hostiles . | . . . Follow-up Attacks . | . . . Damage Inflicted 2924 | 463 1641 820 Guns 2044 | 463 1569 12 Cannons . | . . . Explosions 808 | . . 808 Melee . | . . . Ramming . | . . . Kinetic 1041 | 200 829 12 Thermal 1075 | 263 812 . Explosive 808 | . . 808 Electromagnetic . | . . . Impact . | . . . Slashing . | . . . Piercing . | . . . Highest Corruption 2 | . 2 2 Average Corruption 1 | . 1 2 Corruption Purged . | . . . Corruption Blocked . | . . . Effects 4 | . 3 1 Message Errors 2 | . 1 1 Energy Discharges 1 | . 1 . Weapon Failures 1 | . 1 . Overload Shots . | . . . Overflow Damage 33 | . . 33 Projectiles . | . . . Explosions 33 | . . 33 Melee . | . . . Knockbacks . | . . . Impact . | . . . Kinetic . | . . . Secondary . | . . . Self-Inflicted Damage . | . . . Shots . | . . . Rammed . | . . . Targets Rammed . | . . . Kicked . | . . . Crushed . | . . . Highest Temperature 342 | 54 342 14 Average Temperature 64 | 21 74 8 Received Heat Transfer 162 | . 162 . Effects 2 | . 2 . Shutdowns 1 | . 1 . Energy Bleed 1 | . 1 . Siege Activations . | . . . Robots Corrupted . | . . . Combat Hostiles . | . . . Parts Fried . | . . . Impact Corruptions . | . . . Robots Melted . | . . . Combat Hostiles . | . . . Parts Melted 9 | 4 5 . Heat Transferred 3628 | 925 2703 . Parts Sabotaged . | . . . Parts Stolen . | . . . Parts Stripped . | . . . Power Chain Reactions . | . . . Alert | -11 -10 -10 ------- Run | Yrd Mat Min Peak Influence 299 | 70 299 58 Initial 34 | . 34 . Average 78 | 38 95 32 Maximum Alert Level 1 | . 1 . Low Security (%) 85 | 100 79 100 Level 1 14 | . 20 . Level 2 . | . . . Level 3 . | . . . Level 4 . | . . . Level 5 . | . . . High Security . | . . . Max Security . | . . . Squads Dispatched 1 | . 1 . Investigation 1 | . 1 . Extermination . | . . . Reinforcement . | . . . Assault . | . . . Garrison . | . . . Intercept . | . . . Searches Triggered . | . . . Construction Impeded . | . . . Haulers Reinforced . | . . . Active Scanning Responses . | . . . Cargo Convoy Interrupts . | . . . Stealth | -11 -10 -10 --------- Run | Yrd Mat Min Distress Signals . | . . . Communications Jammed . | . . . Distress Signals . | . . . Times Spotted 27 | . 16 11 Peak Tracking Total 8 | . 3 8 Tactical Retreats 1 | . 1 . Traps | -11 -10 -10 ------- Run | Yrd Mat Min Traps Triggered 4 | . 4 . Indirectly . | . . . Trap Hack Attempts . | . . . Triggered . | . . . Disarmed . | . . . Reprogrammed 3 | . 3 . Reused . | . . . Traps Extracted . | . . . Installed . | . . . Triggered . | . . . Machines | -11 -10 -10 ---------- Run | Yrd Mat Min Machines Disabled 1 | . 1 . Max in Single Turn 1 | . 1 . Machines Repaired . | . . . Machines Dismantled . | . . . Machines Sabotaged . | . . . Overloaded Fab Kills . | . . . Hacking | -11 -10 -10 --------- Run | Yrd Mat Min Machines Accessed 4 | . 4 . Terminals 4 | . 4 . Fabricators . | . . . Repair Stations . | . . . Recycling Units . | . . . Scanalyzers . | . . . Garrison Access . | . . . Total Hacks 12 | . 12 . Successful 3 | . 3 . Failed 9 | . 9 . Catastrophic 3 | . 3 . Database Lockouts . | . . . Manual 12 | . 12 . Terminals 12 | . 12 . Fabricators . | . . . Repair Stations . | . . . Recycling Units . | . . . Scanalyzers . | . . . Garrison Access . | . . . Terminal Hacks 3 | . 3 . Unreport Threat 2 | . 2 . Reprogram Traps 1 | . 1 . Fabricator Hacks . | . . . Repair Station Hacks . | . . . Recycling Unit Hacks . | . . . Scanalyzer . | . . . Garrison Access Hacks . | . . . Unauthorized Hacks . | . . . Terminals . | . . . Fabricators . | . . . Repair Stations . | . . . Recycling Units . | . . . Scanalyzers . | . . . Garrison Access . | . . . Data Cores Recovered . | . . . Used . | . . . Hacking Detections 4 | . 4 . Full Trace Events 4 | . 4 . Feedback Events . | . . . Feedback Blocked . | . . . Robot Schematics Acquired . | . . . Robots Built . | . . . Authchips . | . . . Time . | . . . Total Robot Build Rating . | . . . Part Schematics Acquired . | . . . Parts Built . | . . . Authchips . | . . . Time . | . . . Total Part Build Rating . | . . . Parts Repaired . | . . . Time . | . . . Parts Recycled . | . . . Recycled Matter . | . . . Retrieved Matter . | . . . Retrieved Components . | . . . Parts Scanalyzed . | . . . Part Schematics Acquired . | . . . Parts Damaged . | . . . Bothacking | -11 -10 -10 ------------ Run | Yrd Mat Min Used RIF Installer . | . . . Robots Hacked . | . . . Non-combat . | . . . Combat . | . . . Robot Hacks Applied . | . . . Relay Couplers Released . | . . . Fabnet Peak Effective % . | . . . Robots Rewired . | . . . Allies Hacked . | . . . Hacks Repelled . | . . . Allies | -11 -10 -10 -------- Run | Yrd Mat Min Total Allies . | . . . Largest Group . | . . . Highest-Rated Group . | . . . Highest-Rated Ally . | . . . Total Orders . | . . . Ally Attacks . | . . . Total Damage . | . . . Kills . | . . . Allies Corrupted . | . . . Allies Melted . | . . . Intel | -11 -10 -10 ------- Run | Yrd Mat Min Robot Analysis Total . | . . . Derelict Logs Recovered . | . . . Drone Launches . | . . . Drone Recoveries . | . . . Exploration | -11 -10 -10 ------------- Run | Yrd Mat Min Turns Passed 1559 | 310 1111 138 Spaces Moved 1170 | 112 927 131 Core 19 | 19 . . Treads . | . . . Legs . | . . . Wheels 1151 | 93 927 131 Hover . | . . . Flight . | . . . Fastest Speed 50 | 50 80 80 Average Speed 80 | 80 80 80 Slowest Speed 100 | 100 80 80 Overloaded Moves . | . . . Propulsion Burnouts . | . . . Robots Hopped . | . . . Cave-ins Triggered . | . . . Exploration Rate (%) 35 | 3 87 17 Regions Visited 2 Branch Regions 1 Pre-discovered Areas . | . . . Known Exits Taken 2 | 1 1 . Unknown Exits Taken . | . . . Scrap Searched . | . . . Spaces Dug 5 | . . 5 Terrain Destroyed 69 | . . 69 Melee . | . . . Projectile . | . . . AOE 69 | . . 69 Terrain Rammed . | . . . Walls Destroyed . | . . . Machines Disabled . | . . . Actions | -11 -10 -10 --------- Run | Yrd Mat Min Total 1567 | 290 1128 149 Wait 182 | 124 58 . Move 1168 | 111 926 131 Hop . | . . . Pick Up 29 | 16 13 . Fast Attach 3 | . 1 2 Attach 9 | 7 2 . Detach . | . . . Swap 19 | 4 14 1 Drop 27 | 6 20 1 Fire 130 | 22 94 14 Melee . | . . . Ram . | . . . Kick . | . . . Crush . | . . . Escape Stasis . | . . . Rewire . | . . . Trap . | . . . Miscellaneous . | . . . Route ------- -11/Scrapyard -10/Materials (discovered 5 exits: *Mat x3 / *Min / Sub) -10/Mines History --------- Turn | Location | Event 6 | -11/Scrapyard | Identified exit to Materials 6 | -11/Scrapyard | Discovered exit to Materials (range 15) 311 | -11/Scrapyard | Entered Materials 311 | -10/Materials | Evolved 1 slot: Utility x1 332 | -10/Materials | Build established: Hacker-Mutant 783 | -10/Materials | Identified exit to Materials 783 | -10/Materials | Discovered exit to Materials (range 16) 956 | -10/Materials | Build established: Scavenger-Mutant 996 | -10/Materials | Identified exit to Subcaves 996 | -10/Materials | Discovered exit to Subcaves (range 10) 1041 | -10/Materials | Discovered exit to Materials (range 12) 1148 | -10/Materials | Discovered exit to Materials (range 15) 1407 | -10/Materials | Identified exit to Mines 1407 | -10/Materials | Discovered exit to Mines (range 11) 1422 | -10/Materials | Entered Mines 1423 | -10/Mines | Assembled infested the area 1429 | -10/Mines | Received a Rocket Launcher from a helpful Derelict 1502 | -10/Mines | Destroyed 8 combat bots 1517 | -10/Mines | Core integrity fell below 50% 1556 | -10/Mines | Core integrity fell below 20% 1560 | -10/Mines | Destroyed by D-53 Grenadier with Mini Grenade Launcher Last Messages --------------- 01470_ Acquired 82 matter. 01472_ Destroyed Asb. Hover Unit. 01476_ The unstable cave ceiling collapses. 01476_ Destroyed Asb. Heavy Rifle. 01481_ as-46152 destroyed. 01482_ JCXX8RGZ=0ZO&5KBG&HNMU 01488_ Acquired 44 matter. 01493_ The unstable cave ceiling collapses. 01510_ Mining Laser destroyed. 01512_ The unstable cave ceiling collapses. 01516_ Rocket Launcher destroyed. 01516_ as-42877 destroyed. 01517_ The unstable cave ceiling collapses. 01533_ Acquired 5 matter. 01550_ Acquired Assault Rifle. 01551_ Lgt. Nuclear Core destroyed. 01551_ Wheel destroyed. 01553_ The unstable cave ceiling collapses. 01553_ Assault Rifle destroyed. 01557_ The unstable cave ceiling collapses. Map ----- +----------------------------------------------------+ | | | | | | | | | | | | | | | | | | | | | | | | | | | | | | | | | ????#??????#??????#??#??##??#???#??#??# | | ????????#????#???#?#????????#?#??#????? | | ??????#????#??####????####?#?#??#?##??? | | ???????#????### ########?#?#???#####?? | | ?????????#???# # ####?#?#?###?## | | ????########?# #?###???##?#? | | ???#??# ### ##?##????##?# | | ??????# dd ####???##??#? | | ?????# ###?#???????? | | ????#?## @ ###?######?? | | ?? ???## ######?#?#? | | ? ?????### ###??## | | ?# ??###?## # ## #??#? | | ?# ?#??##?## ###### # #??#? | | ##? ?##??#?# ###???### # #?#?? | | ?#?????#?#?## ###?#?### ##??# | | ??? #??#??#?# ###?#?#?### " #??#? | | ???????##???###?##??#?#?# ###?? | | ????????#??????###?#???## ####? | | ?????????????##???#??#?# ###? | | ????????##?#??#??#?#??## #??? | | ????? ?#?##???## ? ?#?# ###? | | ???????????#?# ? ? ?### ##?? | | ??????????? ? ?? ?? ### ###? | | ???????????? ? ? ?### #### | | ??????????? ? ?? ??### # ##?# | | ?????????????#?????### # ###?? | | ????????????#???##?# # ###??# | | ????????? ????#???### ##???? | | ??????????????????# # ###????# | | ?????????????????## ###???#?#? | | ???????????#??????# # ##??????#?# | | ????????? ?? ####???#?#? | | ???????????# ##### #?????????# | +----------------------------------------------------+ Best States ------------- Heat Dissipation 25 Energy Generation 14 Energy Capacity 160 Matter Stores 300 Matter Capacity 300 Sight Range 16 Terrain Scan Range 16 Terrain Scan Density 85 ECM Strength 1 Resistance: KI 35 Resistance: TH 35 Resistance: EX 35 Resistance: EM 35 Resistance: I 35 Resistance: S 35 Resistance: P 35 Evasion (%) 44 Targeting Accuracy 10 Offensive Hacking 20 Item Schematics ----------------- None Robot Schematics ------------------ None Fabricated ------------ Nothing Alien Tech Used ----------------- None Achievements -------------- None Challenges ------------ None Game ------ Seed GravitonCommJammer Manual? 0 Play Time 00:23:34 Cumulative 16.2 hours Start 2024.04.08 @ 00:55:57 End 2024.04.08 @ 01:17:40 Sessions 1 Manual Loads 0 Difficulty Explorer Special Mode None Game No. 14 Rogue 0 Adventurer 0 Explorer 14 Win Type - Total 0 Types 0/0/0/0/0/0/0/0/0 Lore% 4 Gallery% 22 Achievement% 17 Wizard Run 0 Options --------- Layout 1 ASCII 0 Keyboard 0 Movement Mouse Keybinds 0 Fullscreen 1 Font 24/Smallcaps Map View 50x35 Zoom Use 0% Tactical HUD 1 Map Filters NONE Filters NONE Steam 1 RUN: 2aa9e1d5-ddcf-402b-b645-fa2f0fbd5285